fUST/lending_fUST_20250103
["ID","MTS","AMOUNT","RATE_DAILY","PERIOD"]
[347485773,1735866636311,-153.0,0.00019308,2]
[347485774,1735866636320,-153.0,0.00019311,2]
[347485775,1735866636329,-153.0,0.00019311,2]
[347485776,1735866636338,-153.0,0.00019311,2]
[347485777,1735866636348,-153.0,0.00019311,2]
[347485778,1735866636358,-153.0,0.00019311,2]
[347485779,1735866636368,-153.0,0.00019311,2]
[347485780,1735866636377,-153.0,0.00019312,2]
[347485781,1735866636388,-153.0,0.00019312,2]
[347485782,1735866636399,-153.0,0.00019312,2]
[347485783,1735866636409,-153.0,0.00019312,2]
[347485784,1735866636418,-153.0,0.00019312,2]
[347485785,1735866636427,-153.0,0.00019312,2]
[347485786,1735866636437,-153.0,0.00019312,2]
[347485787,1735866636446,-153.0,0.00019312,2]
[347485788,1735866636456,-153.0,0.00019312,2]
[347485789,1735866636465,-153.0,0.00019312,2]
[347485790,1735866636474,-302.84859387,0.0001938,2]
[347485791,1735866636484,-267.0,0.000194,2]
[347485792,1735866636493,-618.0,0.000194,2]
[347485793,1735866636502,-303.50078995,0.0001942,2]
[347485794,1735866636512,-3302.37,0.00019452,3]
[347485795,1735866636523,-500.0,0.00019452,3]
[347485796,1735866636532,-500.0,0.00019452,3]
[347485797,1735866636541,-500.0,0.00019452,3]
[347485798,1735866636551,-500.0,0.00019452,3]
[347485799,1735866636561,-2343.04,0.00019452,3]
[347485800,1735866636571,-500.0,0.00019452,3]
[347485801,1735866636581,-500.0,0.00019452,3]
[347485802,1735866636591,-500.0,0.00019452,3]
[347485803,1735866636600,-500.0,0.00019452,3]
[347485804,1735866636609,-288.63762922,0.00019452,3]
[347485805,1735866636618,-500.0,0.00019452,3]
[347485806,1735866636628,-500.0,0.00019452,3]
[347485807,1735866636638,-500.0,0.00019452,3]
[347485808,1735866636648,-500.0,0.00019452,3]
[347485809,1735866636657,-500.0,0.00019452,3]
[347485810,1735866636666,-500.0,0.00019452,3]
[347485811,1735866636675,-692.42,0.00019452,3]
[347485812,1735866636685,-500.0,0.00019452,3]
[347485813,1735866636694,-631.55961352,0.00019452,3]
[347485814,1735866636704,-500.0,0.00019452,3]
[347485815,1735866636713,-977.98,0.00019452,2]
[347485816,1735866636722,-500.0,0.00019452,3]
[347485817,1735866636731,-500.0,0.00019452,3]
[347485818,1735866636740,-500.0,0.00019452,3]
[347485819,1735866636749,-500.0,0.00019452,3]
[347485820,1735866636758,-500.0,0.00019452,3]
[347485821,1735866636768,-500.0,0.00019452,3]
[347485822,1735866636777,-593.95,0.00019452,3]
[347485823,1735866636786,-500.0,0.00019452,3]
[347485824,1735866636796,-500.0,0.00019452,3]
[347485825,1735866636805,-267.28891495,0.00019452,3]
[347485826,1735866636814,-500.0,0.00019452,3]
[347485827,1735866636824,-500.0,0.00019452,3]
[347485828,1735866636833,-500.0,0.00019452,3]
[347485829,1735866636842,-500.0,0.00019452,3]
[347485830,1735866636851,-500.0,0.00019452,3]
[347485831,1735866636860,-500.0,0.00019452,3]
[347485832,1735866636869,-241.54454678,0.00019452,3]
[347485833,1735866636879,-522.47,0.00019452,3]
[347485834,1735866636889,-500.0,0.00019452,3]
[347485835,1735866636898,-718.82,0.00019452,3]
[347485836,1735866636908,-500.0,0.00019452,3]
[347485837,1735866636917,-500.0,0.00019452,3]
[347485838,1735866636926,-500.0,0.00019452,3]
[347485839,1735866636935,-1096.79,0.00019452,3]
[347485840,1735866636944,-955.25,0.00019452,3]
[347485841,1735866636958,-251.08146193,0.00019452,3]
[347485842,1735866636967,-200.0,0.00019452,3]
[347485843,1735866636976,-500.0,0.00019452,3]
[347485844,1735866636985,-531.99253567,0.00019452,3]
[347485845,1735866636995,-500.0,0.00019452,3]
[347485846,1735866637004,-946.66,0.00019452,3]
[347485847,1735866637013,-693.56,0.00019452,3]
[347485848,1735866637022,-500.0,0.00019452,3]
[347485849,1735866637031,-500.0,0.00019452,3]
[347485850,1735866637040,-703.19,0.00019452,3]
[347485851,1735866637049,-585.94,0.00019452,3]
[347485852,1735866637058,-500.0,0.00019452,3]
[347485853,1735866637067,-500.0,0.00019452,3]
[347485854,1735866637076,-632.92,0.00019452,3]
[347485855,1735866637085,-500.0,0.00019452,3]
[347485856,1735866637094,-500.0,0.00019452,3]
[347485857,1735866637103,-500.0,0.00019452,3]
[347485858,1735866637112,-570.13221206,0.00019452,3]
[347485859,1735866637121,-500.0,0.00019452,3]
[347485860,1735866637131,-1305.02,0.00019452,3]
[347485861,1735866637140,-544.3,0.00019452,3]
[347485862,1735866637150,-500.0,0.00019452,3]
[347485863,1735866637159,-698.33,0.00019452,3]
[347485864,1735866637168,-500.0,0.00019452,3]
[347485865,1735866637177,-500.0,0.00019452,3]
[347485866,1735866637186,-1185.16,0.00019452,3]
[347485867,1735866637195,-500.0,0.00019452,3]
[347485868,1735866637204,-500.0,0.00019452,3]
[347485869,1735866637213,-500.0,0.00019452,3]
[347485870,1735866637222,-500.0,0.00019452,3]
[347485871,1735866637231,-568.33,0.00019452,3]
[347485872,1735866637240,-500.0,0.00019452,3]
[347485873,1735866637249,-500.0,0.00019452,3]
[347485874,1735866637259,-1472.03,0.00019452,3]
[347485875,1735866637267,-564.15,0.00019452,3]
[347485876,1735866637276,-500.0,0.00019452,3]
[347485877,1735866637285,-674.45,0.00019452,3]
[347485878,1735866637294,-776.82,0.00019452,3]
[347485879,1735866637303,-635.19,0.00019452,3]
[347485880,1735866637312,-500.0,0.00019452,3]
[347485881,1735866637322,-500.0,0.00019452,3]
[347485882,1735866637330,-562.36,0.00019452,3]
[347485883,1735866637339,-2285.22,0.00019452,3]
[347485884,1735866637348,-582.14,0.00019452,3]
[347485885,1735866637357,-656.84,0.00019452,3]
[347485886,1735866637367,-500.0,0.00019452,3]
[347485887,1735866637376,-644.73540781,0.00019452,3]
[347485888,1735866637385,-500.0,0.00019452,3]
[347485889,1735866637396,-1005.62,0.00019452,3]
[347485890,1735866637405,-500.0,0.00019452,3]
[347485891,1735866637414,-1050.6,0.00019452,3]
[347485892,1735866637423,-485.48415739,0.00019452,3]
[347485893,1735866637432,-636.97646742,0.00019452,3]
[347485894,1735866637442,-500.0,0.00019452,3]
[347485895,1735866637450,-1242.68,0.00019452,3]
[347485896,1735866637459,-500.0,0.00019452,3]
[347485897,1735866637469,-6975.89,0.00019452,3]
[347485898,1735866637478,-542.17,0.00019452,3]
[347485900,1735866637487,-677.22,0.00019452,3]
[347485901,1735866637496,-500.0,0.00019452,3]
[347485902,1735866637505,-1373.18,0.00019452,3]
[347485903,1735866637514,-500.0,0.00019452,3]
[347485904,1735866637523,-10763.2,0.00019452,3]
[347485905,1735866637532,-1002.7,0.00019452,3]
[347485906,1735866637541,-632.89,0.00019452,3]
[347485909,1735866637550,-500.0,0.00019452,3]
[347485910,1735866637559,-27402.1,0.00019452,3]
[347485911,1735866637569,-853.78,0.00019452,3]
[347485912,1735866637578,-500.0,0.00019452,3]
[347485913,1735866637587,-3470.03,0.00019452,3]
[347485914,1735866637596,-1215.97,0.00019452,3]
[347485915,1735866637606,-744.73,0.00019452,3]
[347485916,1735866637616,-599.25,0.00019452,3]
[347485917,1735866637625,-500.0,0.00019452,3]
[347485918,1735866637634,-641.52902024,0.00019452,3]
[347485919,1735866637646,-500.0,0.00019452,3]
[347485920,1735866637655,-500.0,0.00019452,3]
[347485921,1735866637664,-500.0,0.00019452,3]
[347485922,1735866637674,-2174.68,0.00019452,3]
[347485923,1735866637684,-954.44,0.00019452,3]
[347485924,1735866637693,-500.0,0.00019452,2]
[347485925,1735866637702,-500.0,0.00019452,3]
[347485926,1735866637711,-500.0,0.00019452,3]
[347485927,1735866637720,-500.0,0.00019452,3]
[347485928,1735866637730,-1159.06,0.00019452,3]
[347485929,1735866637739,-500.0,0.00019452,3]
[347485930,1735866637748,-902.27,0.00019452,3]
[347485931,1735866637757,-532.17,0.00019452,3]
[347485932,1735866637767,-500.0,0.00019452,3]
[347485933,1735866637776,-1474.0,0.00019452,3]
[347485934,1735866637785,-1021.5,0.00019452,3]
[347485935,1735866637794,-500.0,0.00019452,3]
[347485936,1735866637803,-607.19,0.00019452,3]
[347485937,1735866637812,-559.83,0.00019452,3]
[347485938,1735866637937,-5707.05,0.00019452,3]
[347485939,1735866637948,-500.0,0.00019452,3]
[347485940,1735866637960,-500.0,0.00019452,3]
[347485941,1735866637969,-500.0,0.00019452,3]
[347485942,1735866637980,-2172.59,0.00019452,3]
[347485943,1735866637989,-960.55,0.00019452,3]
[347485944,1735866637999,-778.68,0.00019452,3]
[347485945,1735866638008,-500.0,0.00019452,3]
[347485946,1735866638018,-500.0,0.00019473,2]
[347485947,1735866638028,-4044.4,0.000195,2]
[347485948,1735866638038,-302.84859387,0.0001957,2]
[347485949,1735866638048,-652.06945876,0.00019636,2]
[347485950,1735866638057,-294.8124892,0.00019725,2]
[347485951,1735866638066,-500.0,0.00019725,2]
[347485952,1735866638075,-194.94200422,0.00019725,2]
[347485953,1735866638084,-500.0,0.00019725,2]
[347485954,1735866638094,-3302.37,0.00019726,3]
[347485955,1735866638103,-500.0,0.00019726,3]
[347485956,1735866638112,-500.0,0.00019726,3]
[347485957,1735866638122,-500.0,0.00019726,3]
[347485958,1735866638131,-2343.04,0.00019726,3]
[347485959,1735866638141,-500.0,0.00019726,3]
[347485960,1735866638151,-500.0,0.00019726,3]
[347485961,1735866638160,-500.0,0.00019726,3]
[347485962,1735866638169,-500.0,0.00019726,3]
[347485963,1735866638179,-245.81285655,0.00019726,3]
[347485964,1735866638188,-500.0,0.00019726,3]
[347485965,1735866638197,-500.0,0.00019726,3]
[347485966,1735866638207,-411.54,0.00019726,3]
[347485967,1735866638215,-500.0,0.00019726,3]
[347485969,1735866638225,-500.0,0.00019726,3]
[347485971,1735866638234,-692.42,0.00019726,3]
[347485972,1735866638243,-296.06035818,0.00019726,3]
[347485973,1735866638253,-500.0,0.00019726,3]
[347485974,1735866638262,-977.98,0.00019726,2]
[347485976,1735866638271,-500.0,0.00019726,3]
[347485978,1735866638281,-500.0,0.00019726,3]
[347485979,1735866638290,-500.0,0.00019726,3]
[347485980,1735866638299,-500.0,0.00019726,3]
[347485981,1735866638308,-500.0,0.00019726,3]
[347485982,1735866638317,-270.05947401,0.00019726,3]
[347485983,1735866638326,-593.95,0.00019726,3]
[347485984,1735866638335,-500.0,0.00019726,3]
[347485985,1735866638345,-500.0,0.00019726,3]
[347485986,1735866638354,-500.0,0.00019726,3]
[347485987,1735866638364,-500.0,0.00019726,3]
[347485988,1735866638373,-500.0,0.00019726,3]
[347485989,1735866638382,-500.0,0.00019726,3]
[347485990,1735866638393,-522.47,0.00019726,3]
[347485991,1735866638402,-500.0,0.00019726,3]
[347485992,1735866638411,-718.82,0.00019726,3]
[347485993,1735866638420,-500.0,0.00019726,3]
[347485994,1735866638430,-565.6542324,0.00019726,3]
[347485995,1735866638439,-500.0,0.00019726,3]
[347485996,1735866638449,-1096.79,0.00019726,3]
[347485998,1735866638458,-955.25,0.00019726,3]
[347485999,1735866638467,-200.0,0.00019726,3]
[347486002,1735866638477,-500.0,0.00019726,3]
[347486003,1735866638487,-500.0,0.00019726,3]
[347486004,1735866638497,-946.66,0.00019726,3]
[347486005,1735866638506,-693.56,0.00019726,3]
[347486006,1735866638515,-500.0,0.00019726,3]
[347486007,1735866638524,-703.19,0.00019726,3]
[347486008,1735866638533,-585.94,0.00019726,3]
[347486009,1735866638543,-500.0,0.00019726,3]
[347486010,1735866638552,-500.0,0.00019726,3]
[347486011,1735866638561,-632.92,0.00019726,3]
[347486012,1735866638570,-500.0,0.00019726,3]
[347486013,1735866638579,-500.0,0.00019726,3]
[347486015,1735866638589,-500.0,0.00019726,3]
[347486017,1735866638598,-500.0,0.00019726,3]
[347486018,1735866638607,-1305.02,0.00019726,3]
[347486020,1735866638616,-544.3,0.00019726,3]
[347486022,1735866638626,-500.0,0.00019726,3]
[347486024,1735866638635,-698.33,0.00019726,3]
[347486025,1735866638646,-500.0,0.00019726,3]
[347486026,1735866638655,-500.0,0.00019726,3]
[347486027,1735866638665,-1185.16,0.00019726,3]
[347486028,1735866638675,-500.0,0.00019726,3]
[347486029,1735866638684,-500.0,0.00019726,3]
[347486030,1735866638693,-500.0,0.00019726,3]
[347486031,1735866638702,-500.0,0.00019726,3]
[347486032,1735866638711,-568.33,0.00019726,3]
[347486033,1735866638720,-500.0,0.00019726,3]
[347486034,1735866638730,-500.0,0.00019726,3]
[347486035,1735866638739,-1472.03,0.00019726,3]
[347486036,1735866638748,-564.15,0.00019726,3]
[347486037,1735866638757,-500.0,0.00019726,3]
[347486038,1735866638767,-674.45,0.00019726,3]
[347486039,1735866638777,-776.82,0.00019726,3]
[347486040,1735866638787,-635.19,0.00019726,3]
[347486041,1735866638796,-500.0,0.00019726,3]
[347486042,1735866638805,-500.0,0.00019726,3]
[347486043,1735866638814,-562.36,0.00019726,3]
[347486044,1735866638823,-2285.22,0.00019726,3]
[347486045,1735866638833,-582.14,0.00019726,3]
[347486046,1735866638842,-656.84,0.00019726,3]
[347486047,1735866638851,-500.0,0.00019726,3]
[347486048,1735866638860,-500.0,0.00019726,3]
[347486049,1735866638869,-1005.62,0.00019726,3]
[347486050,1735866638879,-500.0,0.00019726,3]
[347486051,1735866638888,-1050.6,0.00019726,3]
[347486052,1735866638898,-500.0,0.00019726,3]
[347486053,1735866638907,-1242.68,0.00019726,3]
[347486054,1735866638916,-500.0,0.00019726,3]
[347486055,1735866638925,-542.17,0.00019726,3]
[347486056,1735866638934,-6975.89,0.00019726,3]
[347486057,1735866638944,-677.22,0.00019726,3]
[347486058,1735866638958,-500.0,0.00019726,3]
[347486059,1735866638967,-1373.18,0.00019726,3]
[347486060,1735866638977,-500.0,0.00019726,3]
[347486061,1735866638986,-10763.2,0.00019726,3]
[347486062,1735866638996,-1002.7,0.00019726,3]
[347486063,1735866639005,-632.89,0.00019726,3]
[347486064,1735866639014,-500.0,0.00019726,3]
[347486065,1735866639023,-27402.1,0.00019726,3]
[347486066,1735866639032,-853.78,0.00019726,3]
[347486067,1735866639042,-500.0,0.00019726,3]
[347486068,1735866639051,-3470.03,0.00019726,3]
[347486069,1735866639060,-1215.97,0.00019726,3]
[347486070,1735866639069,-744.73,0.00019726,3]
[347486071,1735866639079,-599.25,0.00019726,3]
[347486072,1735866639088,-500.0,0.00019726,3]
[347486073,1735866639097,-500.0,0.00019726,3]
[347486074,1735866639106,-500.0,0.00019726,3]
[347486075,1735866639115,-500.0,0.00019726,3]
[347486076,1735866639124,-2174.68,0.00019726,3]
[347486077,1735866639133,-954.44,0.00019726,3]
[347486078,1735866639144,-500.0,0.00019726,2]
[347486079,1735866639153,-500.0,0.00019726,3]
[347486080,1735866639162,-500.0,0.00019726,3]
[347486081,1735866639173,-500.0,0.00019726,3]
[347486082,1735866639182,-1159.06,0.00019726,3]
[347486083,1735866639191,-902.27,0.00019726,3]
[347486084,1735866639200,-500.0,0.00019726,3]
[347486085,1735866639211,-532.17,0.00019726,3]
[347486086,1735866639220,-1474.0,0.00019726,3]
[347486087,1735866639230,-500.0,0.00019726,3]
[347486088,1735866639239,-1021.5,0.00019726,3]
[347486089,1735866639249,-500.0,0.00019726,3]
[347486090,1735866639258,-607.19,0.00019726,3]
[347486091,1735866639268,-559.83,0.00019726,3]
[347486092,1735866639278,-500.0,0.00019726,3]
[347486093,1735866639287,-5707.05,0.00019726,3]
[347486094,1735866639297,-500.0,0.00019726,3]
[347486095,1735866639306,-500.0,0.00019726,3]
[347486096,1735866639316,-2172.59,0.00019726,3]
[347486097,1735866639326,-960.55,0.00019726,3]
[347486098,1735866639335,-778.68,0.00019726,3]
[347486099,1735866639345,-500.0,0.00019726,3]
[347486100,1735866639354,-451.44198088,0.0001976,2]
[347486101,1735866639364,-303.50078995,0.00019763,2]
[347486102,1735866639373,-420.0,0.00019792,2]
[347486103,1735866639383,-160.0,0.00019793,3]
[347486104,1735866639394,-2437.31577671,0.000199,2]
[347486105,1735866639403,-3000.0,0.0002,2]
[347486106,1735866639413,-3302.37,0.0002,3]
[347486107,1735866639422,-500.0,0.0002,3]
[347486108,1735866639432,-500.0,0.0002,3]
[347486109,1735866639441,-500.0,0.0002,3]
[347486110,1735866639450,-2343.04,0.0002,3]
[347486111,1735866639459,-167.62256272,0.0002,3]
[347486112,1735866639468,-500.0,0.0002,3]
[347486113,1735866639478,-500.0,0.0002,3]
[347486114,1735866639488,-500.0,0.0002,3]
[347486115,1735866639498,-500.0,0.0002,3]
[347486116,1735866639507,-500.0,0.0002,3]
[347486117,1735866639516,-15118.0,0.0002,2]
[347486118,1735866639525,-500.0,0.0002,3]
[347486119,1735866639535,-692.42,0.0002,3]
[347486120,1735866639544,-500.0,0.0002,3]
[347486121,1735866639553,-977.98,0.0002,2]
[347486122,1735866639562,-500.0,0.0002,3]
[347486123,1735866639572,-500.0,0.0002,3]
[347486124,1735866639582,-500.0,0.0002,3]
[347486125,1735866639591,-500.0,0.0002,3]
[347486127,1735866639600,-500.0,0.0002,3]
[347486128,1735866639609,-593.95,0.0002,3]
[347486129,1735866639619,-500.0,0.0002,3]
[347486130,1735866639628,-500.0,0.0002,3]
[347486131,1735866639637,-500.0,0.0002,3]
[347486133,1735866639647,-500.0,0.0002,3]
[347486134,1735866639656,-500.0,0.0002,3]
[347486135,1735866639665,-500.0,0.0002,3]
[347486136,1735866639675,-522.47,0.0002,3]
[347486137,1735866639684,-500.0,0.0002,3]
[347486138,1735866639693,-718.82,0.0002,3]
[347486139,1735866639702,-500.0,0.0002,3]
[347486140,1735866639711,-500.0,0.0002,3]
[347486141,1735866639721,-1096.79,0.0002,3]
[347486142,1735866639730,-955.25,0.0002,3]
[347486143,1735866639739,-265.99692176,0.0002,3]
[347486144,1735866639748,-500.0,0.0002,3]
[347486145,1735866639757,-500.0,0.0002,3]
[347486146,1735866639767,-946.66,0.0002,3]
[347486147,1735866639776,-693.56,0.0002,3]
[347486148,1735866639785,-500.0,0.0002,3]
[347486149,1735866639795,-703.19,0.0002,3]
[347486150,1735866639804,-585.94,0.0002,3]
[347486151,1735866639816,-500.0,0.0002,3]
[347486152,1735866639826,-632.92,0.0002,3]
[347486153,1735866639836,-500.0,0.0002,3]
[347486154,1735866639845,-500.0,0.0002,3]
[347486155,1735866639855,-2825.33,0.0002,30]
[347486156,1735866639865,-500.0,0.0002,3]
[347486157,1735866639874,-1305.02,0.0002,3]
[347486158,1735866639883,-544.3,0.0002,3]
[347486159,1735866639893,-500.0,0.0002,3]
[347486160,1735866639903,-698.33,0.0002,3]
[347486161,1735866639912,-500.0,0.0002,3]
[347486162,1735866639922,-1185.16,0.0002,3]
[347486164,1735866639931,-500.0,0.0002,3]
[347486165,1735866639941,-500.0,0.0002,3]
[347486167,1735866639951,-500.0,0.0002,3]
[347486169,1735866639965,-500.0,0.0002,3]
[347486170,1735866639974,-568.33,0.0002,3]
[347486171,1735866639985,-500.0,0.0002,3]
[347486172,1735866639995,-500.0,0.0002,3]
[347486173,1735866640004,-1472.03,0.0002,3]
[347486174,1735866640014,-564.15,0.0002,3]
[347486175,1735866640023,-500.0,0.0002,3]
[347486176,1735866640033,-674.45,0.0002,3]
[347486177,1735866640042,-776.82,0.0002,3]
[347486178,1735866640051,-635.19,0.0002,3]
[347486179,1735866640061,-500.0,0.0002,3]
[347486180,1735866640070,-500.0,0.0002,3]
[347486181,1735866640080,-562.36,0.0002,3]
[347486182,1735866640089,-2285.22,0.0002,3]
[347486184,1735866640098,-582.14,0.0002,3]
[347486185,1735866640107,-656.84,0.0002,3]
[347486187,1735866640117,-500.0,0.0002,3]
[347486188,1735866640127,-500.0,0.0002,3]
[347486189,1735866640136,-1005.62,0.0002,3]
[347486190,1735866640146,-500.0,0.0002,3]
[347486191,1735866640156,-1050.6,0.0002,3]
[347486192,1735866640166,-500.0,0.0002,3]
[347486193,1735866640175,-1242.68,0.0002,3]
[347486194,1735866640184,-500.0,0.0002,3]
[347486195,1735866640194,-542.17,0.0002,3]
[347486196,1735866640203,-677.22,0.0002,3]
[347486197,1735866640213,-6975.89,0.0002,3]
[347486198,1735866640222,-500.0,0.0002,3]
[347486199,1735866640232,-1373.18,0.0002,3]
[347486200,1735866640241,-500.0,0.0002,3]
[347486201,1735866640251,-10763.2,0.0002,3]
[347486202,1735866640260,-1002.7,0.0002,3]
[347486203,1735866640269,-632.89,0.0002,3]
[347486204,1735866640279,-500.0,0.0002,3]
[347486205,1735866640288,-27402.1,0.0002,3]
[347486206,1735866640297,-853.78,0.0002,3]
[347486207,1735866640307,-500.0,0.0002,3]
[347486208,1735866640316,-3470.03,0.0002,3]
[347486209,1735866640326,-1215.97,0.0002,3]
[347486210,1735866640335,-744.73,0.0002,3]
[347486211,1735866640344,-599.25,0.0002,3]
[347486212,1735866640355,-439.3,0.0002,3]
[347486213,1735866640364,-500.0,0.0002,3]
[347486214,1735866640375,-500.0,0.0002,3]
[347486215,1735866640385,-2174.68,0.0002,3]
[347486216,1735866640397,-954.44,0.0002,3]
[347486217,1735866640407,-500.0,0.0002,2]
[347486218,1735866640416,-500.0,0.0002,3]
[347486219,1735866640425,-500.0,0.0002,3]
[347486220,1735866640435,-504.19169737,0.0002,3]
[347486221,1735866640444,-1159.06,0.0002,3]
[347486222,1735866640454,-902.27,0.0002,3]
[347486223,1735866640463,-500.0,0.0002,3]
[347486224,1735866640472,-532.17,0.0002,3]
[347486225,1735866640481,-1474.0,0.0002,3]
[347486226,1735866640490,-500.0,0.0002,3]
[347486227,1735866640499,-1021.5,0.0002,3]
[347486228,1735866640508,-500.0,0.0002,3]
[347486229,1735866640518,-607.19,0.0002,3]
[347486230,1735866640527,-559.83,0.0002,3]
[347486231,1735866640536,-500.0,0.0002,3]
[347486232,1735866640546,-5707.05,0.0002,3]
[347486233,1735866640555,-500.0,0.0002,3]
[347486234,1735866640565,-2172.59,0.0002,3]
[347486235,1735866640574,-500.0,0.0002,3]
[347486236,1735866640583,-960.55,0.0002,3]
[347486237,1735866640594,-778.68,0.0002,3]
[347486238,1735866640603,-500.0,0.0002,3]
[347486239,1735866640612,-2437.31577659,0.00020003,2]
[347486240,1735866640622,-688.049,0.0002004,2]
[347486241,1735866640631,-249.3,0.00020062,5]
[347486242,1735866640640,-303.50078995,0.00020105,2]
[347486243,1735866640649,-2437.31577659,0.00020107,2]
[347486244,1735866640659,-2437.31577659,0.0002021,2]
[347486245,1735866640668,-652.06945876,0.00020222,2]
[347486246,1735866640677,-730.56747522,0.00020261,2]
[347486247,1735866640688,-3302.37,0.00020273,3]
[347486248,1735866640697,-602.90548192,0.00020273,3]
[347486249,1735866640706,-500.0,0.00020273,3]
[347486250,1735866640714,-500.0,0.00020273,3]
[347486251,1735866640723,-2343.04,0.00020273,3]
[347486252,1735866640732,-500.0,0.00020273,3]
[347486253,1735866640741,-500.0,0.00020273,3]
[347486254,1735866640751,-500.0,0.00020273,3]
[347486255,1735866640760,-500.0,0.00020273,3]
[347486256,1735866640769,-504.35,0.00020273,3]
[347486257,1735866640778,-692.42,0.00020273,3]
[347486258,1735866640787,-500.0,0.00020273,3]
[347486259,1735866640796,-977.98,0.00020273,2]
[347486260,1735866640805,-500.0,0.00020273,3]
[347486261,1735866640815,-500.0,0.00020273,3]
[347486262,1735866640824,-500.0,0.00020273,3]
[347486263,1735866640834,-264.52,0.00020273,3]
[347486264,1735866640843,-500.0,0.00020273,3]
[347486265,1735866640973,-593.95,0.00020273,3]
[347486266,1735866640983,-500.0,0.00020273,3]
[347486267,1735866640993,-500.0,0.00020273,3]
[347486268,1735866641002,-500.0,0.00020273,3]
[347486269,1735866641011,-500.0,0.00020273,3]
[347486270,1735866641024,-500.0,0.00020273,3]
[347486271,1735866641035,-500.0,0.00020273,3]
[347486272,1735866641046,-522.47,0.00020273,3]
[347486273,1735866641056,-500.0,0.00020273,3]
[347486274,1735866641069,-718.82,0.00020273,3]
[347486275,1735866641080,-500.0,0.00020273,3]
[347486276,1735866641090,-500.0,0.00020273,3]
[347486277,1735866641101,-1096.79,0.00020273,3]
[347486278,1735866641109,-955.25,0.00020273,3]
[347486279,1735866641119,-500.0,0.00020273,3]
[347486280,1735866641128,-432.60669599,0.00020273,3]
[347486281,1735866641137,-946.66,0.00020273,3]
[347486282,1735866641148,-693.56,0.00020273,3]
[347486283,1735866641157,-500.0,0.00020273,3]
[347486284,1735866641167,-703.19,0.00020273,3]
[347486285,1735866641176,-585.94,0.00020273,3]
[347486286,1735866641185,-500.0,0.00020273,3]
[347486287,1735866641194,-632.92,0.00020273,3]
[347486288,1735866641203,-500.0,0.00020273,3]
[347486289,1735866641212,-500.0,0.00020273,3]
[347486290,1735866641221,-500.0,0.00020273,3]
[347486291,1735866641231,-1305.02,0.00020273,3]
[347486292,1735866641241,-544.3,0.00020273,3]
[347486293,1735866641250,-500.0,0.00020273,3]
[347486294,1735866641259,-698.33,0.00020273,3]